fUSD/lending_fUSD_20250202
["ID","MTS","AMOUNT","RATE_DAILY","PERIOD"]
[351283473,1738505553503,-500.0,0.00012739,2]
[351283474,1738505553514,-1766.1,0.00012739,2]
[351283475,1738505553524,-1697.0,0.00012739,2]
[351283476,1738505553534,-1939.71,0.00012739,2]
[351283477,1738505553545,-787.48,0.00012739,2]
[351283478,1738505553558,-1300.79,0.00012739,2]
[351283479,1738505553568,-3484.78,0.00012739,2]
[351283480,1738505553579,-512.49,0.00012739,2]
[351283481,1738505553590,-500.0,0.00012739,2]
[351283482,1738505553600,-1213.23,0.00012739,2]
[351283483,1738505553610,-5629.82,0.00012739,2]
[351283484,1738505553621,-2449.26,0.00012739,2]
[351283485,1738505553631,-758.01,0.00012739,2]
[351283486,1738505553643,-848.99,0.00012739,2]
[351283487,1738505553653,-888.7,0.00012739,2]
[351283488,1738505553663,-4605.95,0.00012739,2]
[351283489,1738505553674,-2359.63,0.00012739,2]
[351283490,1738505553684,-892.49,0.00012739,2]
[351283491,1738505553695,-871.23,0.00012739,2]
[351283492,1738505553705,-1094.04,0.00012739,2]
[351283493,1738505553717,-6442.67,0.00012739,2]
[351283494,1738505553727,-1297.27,0.00012739,2]
[351283495,1738505553737,-2052.81,0.00012739,2]
[351283496,1738505553747,-2655.71,0.00012739,2]
[351283497,1738505553758,-1885.94,0.00012739,2]
[351283498,1738505553769,-1553.08,0.00012739,2]
[351283499,1738505553781,-10441.41,0.00012739,2]
[351283500,1738505553791,-542.89008073,0.00012739,2]
[351283501,1738505553802,-1012.3,0.00012739,2]
[351283502,1738505553813,-500.0,0.00012739,2]
[351283503,1738505553825,-4514.04,0.00012739,2]
[351283504,1738505553835,-3003.61,0.00012739,2]
[351283505,1738505553846,-2902.94,0.00012739,2]
[351283506,1738505553857,-4716.6,0.00012739,2]
[351283507,1738505553868,-1964.45,0.00012739,2]
[351283508,1738505553878,-1593.35,0.00012739,2]
[351283509,1738505553889,-1637.22,0.00012739,2]
[351283510,1738505553900,-3416.51,0.00012739,2]
[351283511,1738505553911,-882.55,0.00012739,2]
[351283512,1738505553921,-500.0,0.00012739,2]
[351283513,1738505553932,-4127.67,0.00012739,2]
[351283514,1738505553943,-9172.95,0.00012739,2]
[351283515,1738505553954,-716.69,0.00012739,2]
[351283516,1738505553965,-3935.05,0.00012739,2]
[351283517,1738505553976,-994.51,0.00012739,2]
[351283518,1738505553987,-500.0,0.00012739,2]
[351283519,1738505553998,-500.0,0.00012739,2]
[351283520,1738505554009,-2231.33,0.00012739,2]
[351283521,1738505554020,-646.36,0.00012739,2]
[351283522,1738505554030,-7703.46,0.00012739,2]
[351283523,1738505554041,-612.75,0.00012739,2]
[351283524,1738505554051,-6130.86,0.00012739,2]
[351283525,1738505554062,-1008.29,0.00012739,2]
[351283526,1738505554073,-4888.75,0.00012739,2]
[351283527,1738505554083,-4468.98,0.00012739,2]
[351283528,1738505554093,-874.52,0.00012739,2]
[351283529,1738505554104,-7017.85,0.00012739,2]
[351283530,1738505554115,-7067.83,0.00012739,2]
[351283531,1738505554126,-504.51,0.00012739,2]
[351283532,1738505554137,-1694.57,0.00012739,2]
[351283533,1738505554148,-1463.68,0.00012739,2]
[351283534,1738505554159,-500.0,0.00012739,2]
[351283535,1738505554170,-809.09,0.00012739,2]
[351283536,1738505554181,-500.0,0.00012739,2]
[351283537,1738505554192,-957.1,0.00012739,2]
[351283538,1738505554203,-5901.35,0.00012739,2]
[351283539,1738505554213,-25450.62,0.00012739,2]
[351283540,1738505554223,-3194.77,0.00012739,2]
[351283541,1738505554233,-972.11,0.00012739,2]
[351283542,1738505554244,-500.0,0.00012739,2]
[351283543,1738505554255,-978.28,0.00012739,2]
[351283544,1738505554266,-1927.34,0.00012739,2]
[351283545,1738505554278,-1313.38,0.00012739,2]
[351283546,1738505554289,-1822.98,0.00012739,2]
[351283547,1738505554300,-778.33,0.00012739,2]
[351283548,1738505554311,-2811.74,0.00012739,2]
[351283549,1738505554321,-2290.65,0.00012739,2]
[351283550,1738505554332,-4241.49,0.00012739,2]
[351283551,1738505554342,-2753.15,0.00012739,2]
[351283552,1738505554352,-3179.79,0.00012739,2]
[351283553,1738505554362,-11875.49,0.00012739,2]
[351283554,1738505554373,-590.79,0.00012739,2]
[351283555,1738505554384,-526.62602632,0.00012739,2]
[351283556,1738505554394,-2422.99,0.00012739,2]
[351283557,1738505554405,-1805.01,0.00012739,2]
[351283558,1738505554416,-1720.61,0.00012739,2]
[351283559,1738505554427,-8941.69,0.00012739,2]
[351283560,1738505554437,-890.83,0.00012739,2]
[351283561,1738505554448,-500.0,0.00012739,2]
[351283562,1738505554459,-924.98,0.00012739,2]
[351283563,1738505554469,-500.0,0.00012739,2]
[351283564,1738505554480,-2796.09,0.00012739,2]
[351283565,1738505554491,-753.96,0.00012739,2]
[351283566,1738505554503,-1515.55,0.00012739,2]
[351283567,1738505554514,-500.0,0.00012739,2]
[351283568,1738505554524,-8022.15,0.00012739,2]
[351283569,1738505554535,-1171.94,0.00012739,2]
[351283570,1738505554548,-500.0,0.00012739,2]
[351283571,1738505554559,-741.26,0.00012739,2]
[351283572,1738505554569,-1314.16,0.00012739,2]
[351283573,1738505554580,-500.0,0.00012739,2]
[351283574,1738505554591,-2827.17,0.00012739,2]
[351283575,1738505554602,-596.08,0.00012739,2]
[351283576,1738505554612,-2587.99,0.00012739,2]
[351283577,1738505554623,-500.0,0.00012739,2]
[351283578,1738505554634,-155.292379,0.00012739,2]
[351283579,1738505554644,-770.44,0.00012739,2]
[351283580,1738505554654,-3707.36,0.00012739,2]
[351283581,1738505554664,-651.22,0.00012739,2]
[351283582,1738505554675,-500.0,0.00012739,2]
[351283583,1738505554685,-208.33334,0.0001284,2]
[351283584,1738505554695,-500.0,0.00012876,2]
[351283585,1738505554704,-559.46,0.00012876,2]
[351283586,1738505554714,-803.7,0.00012876,2]
[351283587,1738505554724,-500.0,0.00012876,2]
[351283588,1738505554733,-500.0,0.00012876,2]
[351283589,1738505554744,-801.06,0.00012876,2]
[351283590,1738505554753,-500.0,0.00012876,2]
[351283591,1738505554762,-773.23,0.00012876,2]
[351283592,1738505554772,-500.0,0.00012876,2]
[351283593,1738505554895,-759.9,0.00012876,2]
[351283594,1738505554905,-1260.15,0.00012876,2]
[351283595,1738505554914,-589.03,0.00012876,2]
[351283596,1738505554924,-500.0,0.00012876,2]
[351283597,1738505554933,-500.0,0.00012876,2]
[351283598,1738505554943,-500.0,0.00012876,2]
[351283599,1738505554953,-1063.41,0.00012876,2]
[351283600,1738505554962,-673.02,0.00012876,2]
[351283601,1738505554971,-500.0,0.00012876,2]
[351283602,1738505554979,-821.68,0.00012876,2]
[351283603,1738505554989,-549.88,0.00012876,2]
[351283604,1738505554998,-500.0,0.00012876,2]
[351283605,1738505555007,-703.15,0.00012876,2]
[351283606,1738505555016,-500.0,0.00012876,2]
[351283607,1738505555024,-828.9,0.00012876,2]
[351283608,1738505555033,-627.47,0.00012876,2]
[351283609,1738505555042,-731.11,0.00012876,2]
[351283610,1738505555051,-500.0,0.00012876,2]
[351283611,1738505555060,-500.0,0.00012876,2]
[351283612,1738505555070,-592.69,0.00012876,2]
[351283613,1738505555079,-625.97,0.00012876,2]
[351283614,1738505555088,-500.0,0.00012876,2]
[351283615,1738505555098,-181.25496937,0.00012876,2]
[351283616,1738505555107,-500.0,0.00012876,2]
[351283617,1738505555117,-661.86,0.00012876,2]
[351283618,1738505555128,-552.57,0.00012876,2]
[351283619,1738505555138,-3015.63,0.00012876,2]
[351283620,1738505555147,-635.12,0.00012876,2]
[351283621,1738505555157,-1112.86,0.00012876,2]
[351283622,1738505555166,-511.08,0.00012876,2]
[351283623,1738505555175,-910.85,0.00012876,2]
[351283624,1738505555185,-500.0,0.00012876,2]
[351283625,1738505555194,-738.14,0.00012876,2]
[351283626,1738505555203,-1482.76,0.00012876,2]
[351283627,1738505555213,-500.0,0.00012876,2]
[351283628,1738505555223,-500.0,0.00012876,2]
[351283629,1738505555232,-545.77,0.00012876,2]
[351283630,1738505555242,-500.0,0.00012876,2]
[351283631,1738505555252,-735.2,0.00012876,2]
[351283632,1738505555261,-717.38,0.00012876,2]
[351283633,1738505555271,-500.0,0.00012876,2]
[351283634,1738505555281,-615.89240701,0.00012876,2]
[351283635,1738505555291,-2333.39,0.00012876,2]
[351283636,1738505555301,-618.28,0.00012876,2]
[351283637,1738505555311,-346.8922052,0.00012876,2]
[351283638,1738505555321,-2305.89,0.00012876,2]
[351283639,1738505555331,-703.3,0.00012876,2]
[351283640,1738505555340,-2217.46,0.00012876,2]
[351283641,1738505555349,-500.0,0.00012876,2]
[351283642,1738505555359,-573.42,0.00012876,2]
[351283643,1738505555368,-2053.36,0.00012876,2]
[351283644,1738505555377,-1106.04,0.00012876,2]
[351283645,1738505555387,-2139.13,0.00012876,2]
[351283646,1738505555397,-466.39509263,0.00012876,2]
[351283647,1738505555406,-1316.15,0.00012876,2]
[351283648,1738505555416,-500.0,0.00012876,2]
[351283649,1738505555425,-500.0,0.00012876,2]
[351283650,1738505555436,-548.83,0.00012876,2]
[351283651,1738505555445,-553.21,0.00012876,2]
[351283652,1738505555455,-525.3,0.00012876,2]
[351283653,1738505555464,-500.0,0.00012876,2]
[351283654,1738505555474,-2325.54,0.00012876,2]
[351283655,1738505555483,-1109.74,0.00012876,2]
[351283656,1738505555493,-500.44,0.00012876,2]
[351283657,1738505555503,-681.73,0.00012876,2]
[351283658,1738505555514,-677.93,0.00012876,2]
[351283659,1738505555524,-513.34,0.00012876,2]
[351283660,1738505555533,-1154.2,0.00012876,2]
[351283661,1738505555544,-2022.69,0.00012876,2]
[351283662,1738505555556,-685.35,0.00012876,2]
[351283663,1738505555566,-500.0,0.00012876,2]
[351283664,1738505555575,-500.0,0.00012876,2]
[351283665,1738505555586,-500.0,0.00012876,2]
[351283666,1738505555596,-550.64,0.00012876,2]
[351283667,1738505555606,-1342.11,0.00012876,2]
[351283668,1738505555615,-500.0,0.00012876,2]
[351283669,1738505555625,-500.0,0.00012876,2]
[351283670,1738505555634,-2093.39,0.00012876,2]
[351283671,1738505555644,-880.18,0.00012876,2]
[351283672,1738505555653,-1643.92,0.00012876,2]
[351283673,1738505555663,-500.0,0.00012876,2]
[351283674,1738505555672,-793.33,0.00012876,2]
[351283675,1738505555681,-254.0,0.00012876,2]
[351283676,1738505555690,-500.0,0.00012876,2]
[351283677,1738505555699,-1232.16,0.00012876,2]
[351283678,1738505555708,-588.54,0.00012876,2]
[351283679,1738505555717,-500.0,0.00012876,2]
[351283680,1738505555727,-534.34,0.00012876,2]
[351283681,1738505555736,-538.87,0.00012876,2]
[351283682,1738505555745,-793.28,0.00012876,2]
[351283683,1738505555755,-500.0,0.00012876,2]
[351283684,1738505555764,-1592.88,0.00012876,2]
[351283685,1738505555773,-616.53,0.00012876,2]
[351283686,1738505555781,-500.0,0.00012876,2]
[351283687,1738505555790,-500.0,0.00012876,2]
[351283688,1738505555799,-1854.87,0.00012876,2]
[351283689,1738505555808,-1690.33,0.00012876,2]
[351283690,1738505555817,-500.0,0.00012876,2]
[351283691,1738505555826,-500.0,0.00012876,2]
[351283692,1738505555835,-534.43,0.00012876,2]
[351283693,1738505555845,-500.0,0.00012876,2]
[351283694,1738505555854,-508.93,0.00012876,2]
[351283695,1738505555863,-637.72,0.00012876,2]
[351283696,1738505555873,-1150.84,0.00012876,2]
[351283697,1738505555883,-508.66,0.00012876,2]
[351283698,1738505555891,-500.0,0.00012876,2]
[351283699,1738505555900,-586.07,0.00012876,2]
[351283700,1738505555910,-800.25,0.00012876,2]
[351283701,1738505555919,-731.54,0.00012876,2]
[351283702,1738505555928,-1305.07,0.00012876,2]
[351283703,1738505555937,-1841.9,0.00012876,2]
[351283704,1738505555946,-734.22,0.00012876,2]
[351283705,1738505555956,-500.0,0.00012876,2]
[351283706,1738505555965,-1731.58,0.00012876,2]
[351283707,1738505555974,-573.1,0.00012876,2]
[351283708,1738505555983,-500.0,0.00012876,2]
[351283709,1738505555992,-500.0,0.00012876,2]
[351283710,1738505556001,-1366.78,0.00012876,2]
[351283711,1738505556010,-500.0,0.00012876,2]
[351283712,1738505556020,-1447.06,0.00012876,2]
[351283713,1738505556029,-955.56,0.00012876,2]
[351283714,1738505556038,-521.42,0.00012876,2]
[351283715,1738505556047,-854.39,0.00012876,2]
[351283716,1738505556056,-904.27,0.00012876,2]
[351283717,1738505556066,-2762.56,0.00012876,2]
[351283718,1738505556075,-505.73550146,0.00012876,2]
[351283719,1738505556085,-500.0,0.00012876,2]
[351283720,1738505556095,-666.98,0.00012876,2]
[351283721,1738505556105,-783.0,0.00012876,2]
[351283722,1738505556115,-500.0,0.00012876,2]
[351283723,1738505556124,-2104.01,0.00012876,2]
[351283724,1738505556134,-2287.85,0.00012876,2]
[351283725,1738505556142,-944.74,0.00012876,2]
[351283726,1738505556152,-738.27,0.00012876,2]
[351283727,1738505556162,-505.82,0.00012876,2]
[351283728,1738505556172,-1297.85,0.00012876,2]
[351283729,1738505556181,-1519.92,0.00012876,2]
[351283730,1738505556191,-500.0,0.00012876,2]
[351283731,1738505556201,-500.0,0.00012876,2]
[351283732,1738505556211,-500.0,0.00012876,2]
[351283733,1738505556221,-500.0,0.00012876,2]
[351283734,1738505556230,-643.77,0.00012876,2]
[351283735,1738505556239,-784.02,0.00012876,2]
[351283736,1738505556248,-529.45,0.00012876,2]
[351283737,1738505556257,-500.0,0.00012876,2]
[351283738,1738505556266,-1418.55,0.00012876,2]
[351283739,1738505556275,-517.07,0.00012876,2]
[351283740,1738505556284,-2783.69,0.00012876,2]
[351283741,1738505556293,-1420.23,0.00012876,2]
[351283742,1738505556302,-2181.51,0.00012876,2]
[351283743,1738505556311,-1225.35,0.00012876,2]
[351283744,1738505556321,-500.0,0.00012876,2]
[351283745,1738505556329,-500.0,0.00012876,2]
[351283746,1738505556338,-500.0,0.00012876,2]
[351283747,1738505556347,-942.19,0.00012876,2]
[351283748,1738505556356,-507.86,0.00012876,2]
[351283749,1738505556366,-844.52,0.00012876,2]
[351283750,1738505556375,-1267.86,0.00012876,2]
[351283751,1738505556385,-1642.95,0.00012876,2]
[351283752,1738505556395,-632.5,0.00012876,2]
[351283753,1738505556404,-500.0,0.00012876,2]
[351283754,1738505556414,-717.96,0.00012876,2]
[351283755,1738505556423,-862.89,0.00012876,2]
[351283756,1738505556433,-500.0,0.00012876,2]
[351283757,1738505556443,-978.15,0.00012876,2]
[351283758,1738505556453,-1851.1,0.00012876,2]
[351283759,1738505556462,-591.76,0.00012876,2]
[351283760,1738505556473,-722.67,0.00012876,2]
[351283761,1738505556483,-500.0,0.00012876,2]
[351283762,1738505556493,-500.0,0.00012876,2]
[351283763,1738505556503,-520.38,0.00012876,2]
[351283764,1738505556513,-500.0,0.00012876,2]
[351283765,1738505556523,-500.0,0.00012876,2]
[351283766,1738505556533,-1708.12,0.00012876,2]
[351283767,1738505556543,-523.57,0.00012876,2]
[351283768,1738505556556,-624.82121606,0.00012876,2]
[351283769,1738505556566,-760.88,0.00012876,2]
[351283770,1738505556576,-483.34,0.00012876,2]
[351283771,1738505556587,-500.0,0.00012876,2]
[351283772,1738505556597,-811.43,0.00012876,2]
[351283773,1738505556607,-1175.0,0.00012876,2]
[351283774,1738505556617,-1373.61,0.00012876,2]
[351283775,1738505556627,-1105.09,0.00012876,2]
[351283776,1738505556636,-747.24,0.00012876,2]
[351283777,1738505556646,-1419.66,0.00012876,2]
[351283778,1738505556656,-899.67,0.00012876,2]
[351283779,1738505556666,-500.0,0.00012876,2]
[351283780,1738505556675,-814.85,0.00012876,2]
[351283781,1738505556684,-570.87664026,0.00012876,2]
[351283782,1738505556694,-967.34,0.00012876,2]
[351283783,1738505556703,-984.06,0.00012876,2]
[351283784,1738505556712,-709.72,0.00012876,2]
[351283785,1738505556721,-580.72,0.00012876,2]
[351283786,1738505556731,-500.0,0.00012876,2]
[351283787,1738505556740,-509.47,0.00012876,2]
[351283788,1738505556749,-1529.4,0.00012876,2]
[351283789,1738505556758,-1025.92,0.00012876,2]
[351283790,1738505556767,-500.0,0.00012876,2]
[351283791,1738505556775,-736.8,0.00012876,2]
[351283792,1738505556784,-500.0,0.00012876,2]
[351283793,1738505556793,-500.0,0.00012876,2]
[351283794,1738505556802,-500.0,0.00012876,2]
[351283795,1738505556812,-500.0,0.00012876,2]
[351283796,1738505556820,-794.58,0.00012876,2]
[351283797,1738505556830,-515.19,0.00012876,2]
[351283798,1738505556839,-500.0,0.00012876,2]
[351283799,1738505556849,-551.09,0.00012876,2]
[351283800,1738505556858,-1457.11,0.00012876,2]
[351283801,1738505556867,-183.02515902,0.00012876,2]
[351283802,1738505556876,-848.94,0.00012876,2]
[351283803,1738505556885,-512.04,0.00012876,2]
[351283804,1738505556895,-1457.16,0.00012876,2]
[351283805,1738505556904,-562.76,0.00012876,2]
[351283806,1738505556913,-1032.24,0.00012876,2]
[351283807,1738505556922,-1061.96,0.00012876,2]
[351283808,1738505556931,-500.0,0.00012876,2]
[351283809,1738505556941,-1015.65,0.00012876,2]
[351283810,1738505556950,-679.22,0.00012876,2]
[351283811,1738505556959,-1177.9,0.00012876,2]
[351283812,1738505556968,-510.71,0.00012876,2]
[351283813,1738505556977,-500.0,0.00012876,2]
[351283814,1738505556986,-584.42,0.00012876,2]
[351283815,1738505556996,-1657.79,0.00012876,2]
[351283816,1738505557009,-1057.32,0.00012876,2]
[351283817,1738505557018,-500.0,0.00012876,2]
[351283818,1738505557028,-500.0,0.00012876,2]
[351283819,1738505557037,-737.32,0.00012876,2]
[351283820,1738505557046,-865.79,0.00012876,2]
[351283821,1738505557056,-1316.4,0.00012876,2]
[351283822,1738505557066,-671.26,0.00012876,2]
[351283823,1738505557075,-751.62,0.00012876,2]
[351283824,1738505557085,-1011.53,0.00012876,2]
[351283825,1738505557095,-750.62,0.00012876,2]
[351283826,1738505557104,-500.0,0.00012876,2]
[351283827,1738505557114,-1248.28,0.00012876,2]
[351283828,1738505557124,-519.27,0.00012876,2]
[351283829,1738505557134,-500.0,0.00012876,2]
[351283830,1738505557144,-500.0,0.00012876,2]
[351283831,1738505557153,-775.41,0.00012876,2]
[351283832,1738505557163,-650.78,0.00012876,2]
[351283833,1738505557172,-500.0,0.00012876,2]
[351283834,1738505557182,-787.2,0.00012876,2]
[351283835,1738505557191,-500.0,0.00012876,2]
[351283836,1738505557200,-1398.59,0.00012876,2]
[351283837,1738505557210,-2098.34,0.00012876,2]
[351283838,1738505557219,-1717.3,0.00012876,2]
[351283839,1738505557228,-535.92,0.00012876,2]
[351283840,1738505557238,-500.0,0.00012876,2]
[351283841,1738505557247,-520.83,0.00012876,2]
[351283842,1738505557258,-500.0,0.00012876,2]
[351283843,1738505557268,-1388.03,0.00012876,2]
[351283844,1738505557278,-696.21,0.00012876,2]
[351283845,1738505557288,-638.42,0.00012876,2]
[351283846,1738505557298,-1523.64,0.00012876,2]
[351283847,1738505557308,-1438.93,0.00012876,2]
[351283848,1738505557317,-500.0,0.00012876,2]
[351283849,1738505557327,-500.0,0.00012876,2]
[351283850,1738505557337,-1164.79,0.00012876,2]
[351283851,1738505557346,-500.0,0.00012876,2]
[351283852,1738505557356,-2008.34,0.00012876,2]
[351283853,1738505557366,-867.5,0.00012876,2]
[351283854,1738505557376,-500.0,0.00012876,2]
[351283855,1738505557386,-930.83,0.00012876,2]
[351283856,1738505557396,-1142.86,0.00012876,2]
[351283857,1738505557406,-1063.97,0.00012876,2]
[351283858,1738505557415,-5963.38,0.00012876,2]
[351283859,1738505557424,-528.98,0.00012876,2]
[351283860,1738505557433,-632.65,0.00012876,2]
[351283861,1738505557443,-939.46,0.00012876,2]
[351283862,1738505557452,-500.0,0.00012876,2]
[351283863,1738505557461,-1411.82,0.00012876,2]
[351283864,1738505557470,-2575.73,0.00012876,2]
[351283865,1738505557479,-500.0,0.00012876,2]
[351283866,1738505557488,-500.0,0.00012876,2]
[351283867,1738505557498,-4332.07,0.00012876,2]
[351283868,1738505557508,-500.0,0.00012876,2]
[351283869,1738505557517,-623.14,0.00012876,2]
[351283870,1738505557526,-808.47,0.00012876,2]
[351283871,1738505557535,-500.0,0.00012876,2]
[351283872,1738505557547,-500.0,0.00012876,2]
[351283873,1738505557557,-1167.23,0.00012876,2]
[351283874,1738505557566,-1073.14,0.00012876,2]
[351283875,1738505557575,-1266.06,0.00012876,2]
[351283876,1738505557584,-1643.83,0.00012876,2]
[351283877,1738505557593,-2134.84,0.00012876,2]
[351283878,1738505557602,-1098.43,0.00012876,2]
[351283879,1738505557611,-7531.63,0.00012876,2]
[351283880,1738505557620,-636.47,0.00012876,2]
[351283881,1738505557630,-2806.74,0.00012876,2]
[351283882,1738505557639,-500.0,0.00012876,2]
[351283883,1738505557648,-4457.82,0.00012876,2]
[351283884,1738505557657,-500.0,0.00012876,2]
[351283885,1738505557666,-500.0,0.00012876,2]
[351283886,1738505557675,-1431.15,0.00012876,2]
[351283887,1738505557684,-332.75567076,0.00012876,2]
[351283888,1738505557693,-1068.36,0.00012876,2]
[351283889,1738505557703,-3317.75,0.00012876,2]
[351283890,1738505557712,-515.64439918,0.00012876,2]
[351283891,1738505557721,-500.0,0.00012876,2]
[351283892,1738505557731,-3236.23,0.00012876,2]
[351283893,1738505557740,-500.0,0.00012876,2]
[351283894,1738505557753,-500.0,0.00012876,2]
[351283895,1738505557762,-998.58,0.00012876,2]
[351283896,1738505557772,-649.19,0.00012876,2]
[351283897,1738505557783,-3603.07,0.00012876,2]
[351283898,1738505557793,-647.76,0.00012876,2]
[351283899,1738505557802,-518.71,0.00012876,2]
[351283900,1738505557812,-2773.67,0.00012876,2]
[351283901,1738505557821,-3478.77,0.00012876,2]
[351283902,1738505557831,-1377.07,0.00012876,2]
[351283903,1738505557840,-500.0,0.00012876,2]
[351283904,1738505557850,-1559.79,0.00012876,2]
[351283905,1738505557859,-993.51,0.00012876,2]
[351283906,1738505557869,-1353.14,0.00012876,2]
[351283907,1738505557879,-532.1,0.00012876,2]
[351283908,1738505557888,-1889.01,0.00012876,2]
[351283909,1738505557898,-5584.57,0.00012876,2]
[351283910,1738505557907,-628.58,0.00012876,2]
[351283911,1738505557916,-500.0,0.00012876,2]
[351283912,1738505557926,-513.0139808,0.00012876,2]
[351283913,1738505557936,-1416.56,0.00012876,2]
[351283914,1738505557946,-966.92,0.00012876,2]
[351283915,1738505557956,-1706.09,0.00012876,2]
[351283916,1738505557965,-820.07,0.00012876,2]
[351283917,1738505557975,-865.01,0.00012876,2]
[351283918,1738505557985,-555.56,0.00012876,2]
[351283919,1738505557994,-500.0,0.00012876,2]
[351283920,1738505558006,-6599.2,0.00012876,2]
[351283921,1738505558015,-4362.97,0.00012876,2]
[351283922,1738505558025,-3023.49,0.00012876,2]
[351283923,1738505558035,-1475.65,0.00012876,2]
[351283924,1738505558046,-786.41,0.00012876,2]
[351283925,1738505558056,-1337.09,0.00012876,2]
[351283926,1738505558066,-1205.96,0.00012876,2]
[351283927,1738505558077,-1903.11,0.00012876,2]
[351283928,1738505558086,-2817.82,0.00012876,2]
[351283929,1738505558096,-2360.45,0.00012876,2]
[351283930,1738505558106,-500.0,0.00012876,2]
[351283931,1738505558115,-583.26,0.00012876,2]
[351283932,1738505558125,-934.52,0.00012876,2]
[351283933,1738505558136,-1388.22,0.00012876,2]
[351283934,1738505558147,-2432.51,0.00012876,2]
[351283935,1738505558158,-2243.95,0.00012876,2]
[351283936,1738505558168,-609.67,0.00012876,2]
[351283937,1738505558178,-1262.46,0.00012876,2]
[351283938,1738505558189,-2572.68,0.00012876,2]
[351283939,1738505558199,-1950.74,0.00012876,2]
[351283940,1738505558208,-1181.19,0.00012876,2]
[351283941,1738505558219,-871.86,0.00012876,2]
[351283942,1738505558229,-1126.88,0.00012876,2]
[351283943,1738505558238,-541.6,0.00012876,2]
[351283944,1738505558248,-2805.0,0.00012876,2]
[351283945,1738505558258,-3490.69,0.00012876,2]
[351283946,1738505558268,-2478.61,0.00012876,2]
[351283947,1738505558278,-1886.99,0.00012876,2]
[351283948,1738505558288,-693.62,0.00012876,2]
[351283949,1738505558299,-1166.42,0.00012876,2]
[351283950,1738505558309,-4718.72,0.00012876,2]
[351283951,1738505558319,-646.83,0.00012876,2]
[351283952,1738505558329,-500.0,0.00012876,2]
[351283953,1738505558339,-1219.56,0.00012876,2]
[351283954,1738505558349,-1713.43,0.00012876,2]
[351283955,1738505558360,-500.0,0.00012876,2]
[351283956,1738505558370,-764.96,0.00012876,2]
[351283957,1738505558379,-742.31,0.00012876,2]
[351283958,1738505558389,-585.08,0.00012876,2]
[351283959,1738505558398,-5247.94,0.00012876,2]
[351283960,1738505558408,-1545.21,0.00012876,2]
[351283961,1738505558418,-5157.65,0.00012876,2]
[351283962,1738505558428,-2240.61,0.00012876,2]
[351283963,1738505558437,-1481.58,0.00012876,2]
[351283964,1738505558447,-535.67,0.00012876,2]
[351283965,1738505558457,-1485.26,0.00012876,2]
[351283966,1738505558465,-1399.19,0.00012876,2]
[351283967,1738505558474,-3226.98,0.00012876,2]
[351283968,1738505558483,-1311.36,0.00012876,2]
[351283969,1738505558492,-500.0,0.00012876,2]
[351283970,1738505558504,-5680.36,0.00012876,2]
[351283971,1738505558515,-2300.21,0.00012876,2]
[351283972,1738505558526,-500.0,0.00012876,2]